[Event "Titled Tuesday Blitz May 03 Late 2022"]
[White "Gascon Del Nogal, Jose Rafael"]
[Black "Ansh M Shah"]
[WhiteFideId "3902463"]
[BlackFideId "25033379"]
[WhiteElo "2473"]
[BlackElo "1819"]
[Result "1-0"]
[Round "06"]
[TimeControl "180+1"]
[Date "2022.05.03"]
[WhiteClock "0:02:11"]
[BlackClock "0:02:12"]

1. c4 {[%clk 0:02:59]}  e5 {[%clk 0:02:57]} 2. Nc3 {[%clk 0:02:59]}  Nc6 {[%clk 0:02:58]} 3. g3 {[%clk 0:02:58]}  Nf6 {[%clk 0:02:58]} 4. Bg2 {[%clk 0:02:58]}  d6 {[%clk 0:02:58]} 5. e4 {[%clk 0:02:57]}  g6 {[%clk 0:02:59]} 6. Nge2 {[%clk 0:02:57]}  Bg7 {[%clk 0:02:59]} 7. d3 {[%clk 0:02:56]}  O-O {[%clk 0:03:00]} 8. O-O {[%clk 0:02:57]}  a6 {[%clk 0:03:00]} 9. h3 {[%clk 0:02:55]}  Nh5 {[%clk 0:02:59]} 10. Kh2 {[%clk 0:02:54]}  Nd4 {[%clk 0:02:58]} 11. Nxd4 {[%clk 0:02:51]}  exd4 {[%clk 0:02:59]} 12. Ne2 {[%clk 0:02:52]}  f5 {[%clk 0:02:50]} 13. exf5 {[%clk 0:02:52]}  gxf5 {[%clk 0:02:37]} 14. Bf3 {[%clk 0:02:44]}  Nf6 {[%clk 0:02:32]} 15. Bg5 {[%clk 0:02:44]}  h6 {[%clk 0:02:31]} 16. Bh4 {[%clk 0:02:44]}  c5 {[%clk 0:02:31]} 17. Nf4 {[%clk 0:02:43]}  Qc7 {[%clk 0:02:24]} 18. Re1 {[%clk 0:02:41]}  Bd7 {[%clk 0:02:22]} 19. Bxf6 {[%clk 0:02:37]}  Bxf6 {[%clk 0:02:21]} 20. Bd5+ {[%clk 0:02:36]}  Kh7 {[%clk 0:02:20]} 21. Qh5 {[%clk 0:02:33]}  Bg7 {[%clk 0:02:19]} 22. Qg6+ {[%clk 0:02:27]}  Kh8 {[%clk 0:02:19]} 23. Re7 {[%clk 0:02:28]}  Rg8 {[%clk 0:02:12]} 24. Rxg7 {[%clk 0:02:11]}  Rxg7 {[%clk 0:02:12]} 25. Qxh6+ {[%clk 0:02:10]}  Rh7 {[%clk 0:02:12]} 26. Ng6# {[%clk 0:02:11]} 1-0


[Site "https://www.chess.com"]

[Event "Titled Tuesday Blitz May 03 Late 2022"]
[White "Gombocz, Ferenc Jr."]
[Black "Mangialardo, Tiago Carvalho"]
[WhiteFideId "775029"]
[BlackFideId "2130718"]
[WhiteElo "1913"]
[BlackElo "2121"]
[Result "1-0"]
[Round "06"]
[TimeControl "180+1"]
[Date "2022.05.03"]
[WhiteClock "0:02:11"]
[BlackClock "0:00:09"]

1. c4 {[%clk 0:03:00]}  Nf6 {[%clk 0:02:54]} 2. g3 {[%clk 0:03:00]}  e6 {[%clk 0:02:52]} 3. Bg2 {[%clk 0:03:01]}  d5 {[%clk 0:02:52]} 4. Nf3 {[%clk 0:03:01]}  c6 {[%clk 0:02:53]} 5. O-O {[%clk 0:03:01]}  Be7 {[%clk 0:02:53]} 6. b3 {[%clk 0:03:01]}  O-O {[%clk 0:02:52]} 7. Bb2 {[%clk 0:03:01]}  Nbd7 {[%clk 0:02:51]} 8. d4 {[%clk 0:03:02]}  Re8 {[%clk 0:02:38]} 9. Nbd2 {[%clk 0:03:02]}  Nf8 {[%clk 0:02:38]} 10. Qc2 {[%clk 0:03:00]}  Ng6 {[%clk 0:02:37]} 11. Rfe1 {[%clk 0:02:59]}  Bd6 {[%clk 0:02:35]} 12. e4 {[%clk 0:02:59]}  dxe4 {[%clk 0:02:09]} 13. Nxe4 {[%clk 0:02:58]}  Nxe4 {[%clk 0:02:09]} 14. Qxe4 {[%clk 0:02:58]}  a5 {[%clk 0:01:50]} 15. Rad1 {[%clk 0:02:52]}  Bd7 {[%clk 0:01:49]} 16. h4 {[%clk 0:02:46]}  a4 {[%clk 0:01:43]} 17. h5 {[%clk 0:02:44]}  Nf8 {[%clk 0:01:36]} 18. Ne5 {[%clk 0:02:43]}  Qf6 {[%clk 0:01:30]} 19. d5 {[%clk 0:02:27]}  cxd5 {[%clk 0:01:18]} 20. cxd5 {[%clk 0:02:13]}  exd5 {[%clk 0:01:15]} 21. Nxd7 {[%clk 0:02:13]}  Qxb2 {[%clk 0:00:56]} 22. Qxe8 {[%clk 0:02:12]}  Rxe8 {[%clk 0:00:37]} 23. Rxe8 {[%clk 0:02:12]}  axb3 {[%clk 0:00:34]} 24. axb3 {[%clk 0:02:11]}  Qxb3 {[%clk 0:00:25]} 25. Rxd5 {[%clk 0:02:11]}  Qa3 {[%clk 0:00:08]} 26. Rxd6 {[%clk 0:02:09]}  Qxd6 {[%clk 0:00:07]} 27. Rxf8+ {[%clk 0:02:09]}  Qxf8 {[%clk 0:00:06]} 28. Nxf8 {[%clk 0:02:10]}  Kxf8 {[%clk 0:00:07]} 29. Bxb7 {[%clk 0:02:10]}  Ke7 {[%clk 0:00:08]} 30. Kg2 {[%clk 0:02:10]}  g6 {[%clk 0:00:08]} 31. hxg6 {[%clk 0:02:09]}  hxg6 {[%clk 0:00:08]} 32. g4 {[%clk 0:02:09]}  Kf6 {[%clk 0:00:07]} 33. Kg3 {[%clk 0:02:09]}  Ke5 {[%clk 0:00:07]} 34. f4+ {[%clk 0:02:09]}  Ke6 {[%clk 0:00:07]} 35. Ba6 {[%clk 0:02:09]}  f6 {[%clk 0:00:06]} 36. Bc4+ {[%clk 0:02:08]}  Ke7 {[%clk 0:00:06]} 37. Kf3 {[%clk 0:02:08]}  Kd6 {[%clk 0:00:06]} 38. Ke4 {[%clk 0:02:09]}  Kc5 {[%clk 0:00:07]} 39. Bf7 {[%clk 0:02:09]}  g5 {[%clk 0:00:07]} 40. fxg5 {[%clk 0:02:09]}  fxg5 {[%clk 0:00:07]} 41. Kf5 {[%clk 0:02:10]}  Kd6 {[%clk 0:00:08]} 42. Kxg5 {[%clk 0:02:10]}  Ke7 {[%clk 0:00:09]} 43. Kg6 {[%clk 0:02:11]}  Kf8 {[%clk 0:00:09]} 44. Bb3 {[%clk 0:02:11]}  Ke7 {[%clk 0:00:09]} 45. Kg7 {[%clk 0:02:11]} 1-0


[Site "https://www.chess.com"]

[Event "Titled Tuesday Blitz May 03 Late 2022"]
[White "Gutierrez Olivares, Daniel"]
[Black "Kim, Sergey"]
[WhiteFideId "2264005"]
[BlackFideId "13700570"]
[WhiteElo "2317"]
[BlackElo "2527"]
[Result "0-1"]
[Round "06"]
[TimeControl "180+1"]
[Date "2022.05.03"]
[WhiteClock "0:00:03"]
[BlackClock "0:00:09"]

1. Nf3 {[%clk 0:02:29]}  Nf6 {[%clk 0:02:58]} 2. g3 {[%clk 0:02:29]}  g6 {[%clk 0:02:59]} 3. c4 {[%clk 0:02:27]}  Bg7 {[%clk 0:02:59]} 4. Bg2 {[%clk 0:02:28]}  O-O {[%clk 0:02:59]} 5. O-O {[%clk 0:02:29]}  d6 {[%clk 0:02:59]} 6. Nc3 {[%clk 0:02:29]}  e5 {[%clk 0:02:59]} 7. b4 {[%clk 0:02:27]}  Nh5 {[%clk 0:02:58]} 8. a4 {[%clk 0:02:26]}  f5 {[%clk 0:02:58]} 9. Qb3 {[%clk 0:02:21]}  e4 {[%clk 0:02:53]} 10. Ne1 {[%clk 0:02:19]}  Be6 {[%clk 0:02:51]} 11. Bb2 {[%clk 0:02:03]}  Nc6 {[%clk 0:02:45]} 12. d3 {[%clk 0:01:56]}  Ne5 {[%clk 0:02:24]} 13. f4 {[%clk 0:01:44]}  Ng4 {[%clk 0:02:13]} 14. Nc2 {[%clk 0:01:43]}  exd3 {[%clk 0:02:04]} 15. exd3 {[%clk 0:01:42]}  c6 {[%clk 0:02:04]} 16. a5 {[%clk 0:01:39]}  a6 {[%clk 0:02:03]} 17. Rae1 {[%clk 0:01:38]}  Bf7 {[%clk 0:02:03]} 18. h3 {[%clk 0:01:18]}  Ngf6 {[%clk 0:01:50]} 19. Kh2 {[%clk 0:01:19]}  Re8 {[%clk 0:01:46]} 20. d4 {[%clk 0:01:13]}  Qd7 {[%clk 0:01:43]} 21. d5 {[%clk 0:01:10]}  Rxe1 {[%clk 0:01:34]} 22. Rxe1 {[%clk 0:01:10]}  Re8 {[%clk 0:01:34]} 23. Rxe8+ {[%clk 0:01:08]}  Qxe8 {[%clk 0:01:34]} 24. dxc6 {[%clk 0:01:06]}  bxc6 {[%clk 0:01:34]} 25. Qa4 {[%clk 0:00:56]}  Ne4 {[%clk 0:01:08]} 26. Nxe4 {[%clk 0:00:47]}  fxe4 {[%clk 0:01:08]} 27. Bxg7 {[%clk 0:00:45]}  Nxg7 {[%clk 0:01:08]} 28. Nd4 {[%clk 0:00:40]}  Bxc4 {[%clk 0:00:51]} 29. Qxc6 {[%clk 0:00:37]}  Qxc6 {[%clk 0:00:49]} 30. Nxc6 {[%clk 0:00:38]}  e3 {[%clk 0:00:43]} 31. Kg1 {[%clk 0:00:29]}  Nf5 {[%clk 0:00:38]} 32. g4 {[%clk 0:00:27]}  Nh4 {[%clk 0:00:37]} 33. Bd5+ {[%clk 0:00:20]}  Bxd5 {[%clk 0:00:34]} 34. Ne7+ {[%clk 0:00:20]}  Kf7 {[%clk 0:00:28]} 35. Nxd5 {[%clk 0:00:21]}  Nf3+ {[%clk 0:00:20]} 36. Kf1 {[%clk 0:00:19]}  Nd2+ {[%clk 0:00:19]} 37. Ke2 {[%clk 0:00:18]}  Ke6 {[%clk 0:00:18]} 38. Nxe3 {[%clk 0:00:17]}  Ne4 {[%clk 0:00:19]} 39. f5+ {[%clk 0:00:12]}  Ke5 {[%clk 0:00:16]} 40. Kd3 {[%clk 0:00:11]}  d5 {[%clk 0:00:15]} 41. fxg6 {[%clk 0:00:06]}  hxg6 {[%clk 0:00:15]} 42. Nd1 {[%clk 0:00:06]}  g5 {[%clk 0:00:11]} 43. Ke3 {[%clk 0:00:04]}  d4+ {[%clk 0:00:11]} 44. Kd3 {[%clk 0:00:05]}  Kd5 {[%clk 0:00:10]} 45. b5 {[%clk 0:00:01]}  axb5 {[%clk 0:00:10]} 46. a6 {[%clk 0:00:02]}  Nc5+ {[%clk 0:00:10]} 47. Kd2 {[%clk 0:00:02]}  Nxa6 {[%clk 0:00:10]} 48. Nb2 {[%clk 0:00:02]}  Nc5 {[%clk 0:00:10]} 49. Nd3 {[%clk 0:00:01]}  Nxd3 {[%clk 0:00:09]} 50. Kxd3 {[%clk 0:00:02]}  b4 {[%clk 0:00:09]} 51. Kc2 {[%clk 0:00:01]}  Ke4 {[%clk 0:00:09]} 52. Kb3 {[%clk 0:00:02]}  d3 {[%clk 0:00:09]} 53. h4 {[%clk 0:00:03]}  gxh4 {[%clk 0:00:09]} 54. g5 {[%clk 0:00:03]}  Kf5 {[%clk 0:00:09]} 55. g6 {[%clk 0:00:03]}  Kxg6 {[%clk 0:00:09]} 0-1


[Site "https://www.chess.com"]

[Event "Titled Tuesday Blitz May 03 Late 2022"]
[White "Hernandez Bermudez, Ulises Eduardo"]
[Black "Turutin, Alexander"]
[WhiteFideId "3902510"]
[BlackFideId "4180623"]
[WhiteElo "2056"]
[BlackElo "2402"]
[Result "0-1"]
[Round "06"]
[TimeControl "180+1"]
[Date "2022.05.03"]
[WhiteClock "0:00:17"]
[BlackClock "0:00:29"]

1. e4 {[%clk 0:03:00]}  c5 {[%clk 0:02:58]} 2. c3 {[%clk 0:02:59]}  Nf6 {[%clk 0:02:56]} 3. e5 {[%clk 0:02:58]}  Nd5 {[%clk 0:02:56]} 4. d4 {[%clk 0:02:59]}  cxd4 {[%clk 0:02:57]} 5. Qxd4 {[%clk 0:02:59]}  e6 {[%clk 0:02:56]} 6. Nf3 {[%clk 0:03:00]}  Nc6 {[%clk 0:02:56]} 7. Qe4 {[%clk 0:03:00]}  f5 {[%clk 0:02:51]} 8. Qe2 {[%clk 0:02:57]}  Be7 {[%clk 0:02:37]} 9. g3 {[%clk 0:02:54]}  O-O {[%clk 0:02:36]} 10. Bg2 {[%clk 0:02:52]}  b5 {[%clk 0:02:28]} 11. O-O {[%clk 0:02:51]}  Rb8 {[%clk 0:02:18]} 12. Rd1 {[%clk 0:02:47]}  Qc7 {[%clk 0:02:01]} 13. Nbd2 {[%clk 0:02:42]}  Bb7 {[%clk 0:01:54]} 14. Nb3 {[%clk 0:02:36]}  a6 {[%clk 0:01:42]} 15. Nbd4 {[%clk 0:02:30]}  f4 {[%clk 0:01:38]} 16. a3 {[%clk 0:02:18]}  fxg3 {[%clk 0:01:34]} 17. hxg3 {[%clk 0:02:19]}  Nxd4 {[%clk 0:01:23]} 18. Nxd4 {[%clk 0:02:15]}  Bc5 {[%clk 0:01:09]} 19. Bg5 {[%clk 0:01:47]}  h6 {[%clk 0:01:06]} 20. Bd2 {[%clk 0:01:39]}  Bxd4 {[%clk 0:01:01]} 21. cxd4 {[%clk 0:01:38]}  Rbc8 {[%clk 0:00:59]} 22. Qg4 {[%clk 0:01:35]}  Qc2 {[%clk 0:00:40]} 23. Be4 {[%clk 0:01:14]}  Ne3 {[%clk 0:00:31]} 24. Bxe3 {[%clk 0:00:17]}  Qxe4 {[%clk 0:00:30]} 25. Qf4 {[%clk 0:00:17]}  Qg2# {[%clk 0:00:29]} 0-1


[Site "https://www.chess.com"]

[Event "Titled Tuesday Blitz May 03 Late 2022"]
[White "Ibarra Jerez, Jose Carlos"]
[Black "Andreikin, Dmitry"]
[WhiteFideId "2226332"]
[BlackFideId "4158814"]
[WhiteElo "2626"]
[BlackElo "2736"]
[Result "0-1"]
[Round "06"]
[TimeControl "180+1"]
[Date "2022.05.03"]
[WhiteClock "0:00:10"]
[BlackClock "0:00:23"]

1. e4 {[%clk 0:03:00]}  c5 {[%clk 0:02:59]} 2. Nc3 {[%clk 0:03:00]}  g6 {[%clk 0:02:56]} 3. Nf3 {[%clk 0:02:58]}  Bg7 {[%clk 0:02:56]} 4. d4 {[%clk 0:02:59]}  cxd4 {[%clk 0:02:56]} 5. Nxd4 {[%clk 0:03:00]}  Nc6 {[%clk 0:02:56]} 6. Be3 {[%clk 0:03:00]}  Nf6 {[%clk 0:02:56]} 7. Bc4 {[%clk 0:03:01]}  O-O {[%clk 0:02:53]} 8. Bb3 {[%clk 0:03:02]}  d6 {[%clk 0:02:52]} 9. f3 {[%clk 0:03:01]}  Bd7 {[%clk 0:02:46]} 10. h4 {[%clk 0:03:01]}  Rc8 {[%clk 0:02:39]} 11. Qd2 {[%clk 0:03:00]}  Ne5 {[%clk 0:02:30]} 12. g4 {[%clk 0:02:56]}  b5 {[%clk 0:02:15]} 13. O-O-O {[%clk 0:02:46]}  b4 {[%clk 0:02:09]} 14. Nd5 {[%clk 0:02:44]}  Nxd5 {[%clk 0:02:08]} 15. exd5 {[%clk 0:02:42]}  a5 {[%clk 0:02:04]} 16. Nc6 {[%clk 0:02:35]}  Nxc6 {[%clk 0:01:45]} 17. dxc6 {[%clk 0:02:36]}  Bxc6 {[%clk 0:01:43]} 18. Bh6 {[%clk 0:01:53]}  a4 {[%clk 0:01:33]} 19. Bd5 {[%clk 0:01:33]}  Bxd5 {[%clk 0:01:21]} 20. Bxg7 {[%clk 0:01:32]}  Bxf3 {[%clk 0:01:08]} 21. Bxf8 {[%clk 0:01:28]}  Bxd1 {[%clk 0:01:03]} 22. Rxd1 {[%clk 0:01:22]}  b3 {[%clk 0:01:01]} 23. axb3 {[%clk 0:01:11]}  axb3 {[%clk 0:01:02]} 24. c3 {[%clk 0:01:11]}  Qa5 {[%clk 0:00:57]} 25. Qd3 {[%clk 0:01:03]}  Rxf8 {[%clk 0:00:52]} 26. Kd2 {[%clk 0:00:55]}  Rc8 {[%clk 0:00:44]} 27. Qe4 {[%clk 0:00:49]}  d5 {[%clk 0:00:36]} 28. Qe5 {[%clk 0:00:20]}  Qa2 {[%clk 0:00:32]} 29. c4 {[%clk 0:00:13]}  dxc4 {[%clk 0:00:33]} 30. Qc3 {[%clk 0:00:13]}  Rd8+ {[%clk 0:00:30]} 31. Ke2 {[%clk 0:00:14]}  Rxd1 {[%clk 0:00:30]} 32. Kxd1 {[%clk 0:00:13]}  Qb1+ {[%clk 0:00:29]} 33. Kd2 {[%clk 0:00:13]}  Qe4 {[%clk 0:00:24]} 34. Qg3 {[%clk 0:00:11]}  Qd4+ {[%clk 0:00:24]} 35. Kc1 {[%clk 0:00:12]}  e5 {[%clk 0:00:24]} 36. h5 {[%clk 0:00:11]}  Qf4+ {[%clk 0:00:22]} 37. Qxf4 {[%clk 0:00:11]}  exf4 {[%clk 0:00:23]} 38. h6 {[%clk 0:00:10]}  f3 {[%clk 0:00:23]} 0-1


[Site "https://www.chess.com"]

[Event "Titled Tuesday Blitz May 03 Late 2022"]
[White "Jegorovas, Aleksandras"]
[Black "Remizov, Yaroslav"]
[WhiteFideId "12801950"]
[BlackFideId "34134015"]
[WhiteElo "2247"]
[BlackElo "2386"]
[Result "0-1"]
[Round "06"]
[TimeControl "180+1"]
[Date "2022.05.03"]
[WhiteClock "0:00:34"]
[BlackClock "0:01:04"]

1. Nf3 {[%clk 0:02:51]}  Nf6 {[%clk 0:02:57]} 2. c4 {[%clk 0:02:51]}  b6 {[%clk 0:02:54]} 3. Nc3 {[%clk 0:02:50]}  Bb7 {[%clk 0:02:55]} 4. d4 {[%clk 0:02:50]}  g6 {[%clk 0:02:53]} 5. Bg5 {[%clk 0:02:46]}  Bg7 {[%clk 0:02:53]} 6. Qd2 {[%clk 0:02:44]}  Nc6 {[%clk 0:02:52]} 7. d5 {[%clk 0:02:42]}  Nb8 {[%clk 0:02:47]} 8. e4 {[%clk 0:02:42]}  d6 {[%clk 0:02:47]} 9. h3 {[%clk 0:02:39]}  h6 {[%clk 0:02:46]} 10. Be3 {[%clk 0:02:37]}  Na6 {[%clk 0:02:46]} 11. Bd3 {[%clk 0:02:35]}  Nc5 {[%clk 0:02:45]} 12. Bc2 {[%clk 0:02:35]}  a5 {[%clk 0:02:45]} 13. O-O {[%clk 0:02:30]}  g5 {[%clk 0:02:42]} 14. Nd4 {[%clk 0:02:29]}  e6 {[%clk 0:02:40]} 15. f4 {[%clk 0:02:13]}  g4 {[%clk 0:02:34]} 16. e5 {[%clk 0:02:10]}  Nfd7 {[%clk 0:02:32]} 17. dxe6 {[%clk 0:02:02]}  Nxe6 {[%clk 0:02:27]} 18. Nxe6 {[%clk 0:02:02]}  fxe6 {[%clk 0:02:28]} 19. Bg6+ {[%clk 0:02:01]}  Ke7 {[%clk 0:02:24]} 20. hxg4 {[%clk 0:01:44]}  dxe5 {[%clk 0:02:21]} 21. f5 {[%clk 0:01:42]}  Nf6 {[%clk 0:02:17]} 22. Qe2 {[%clk 0:01:29]}  Qd6 {[%clk 0:02:16]} 23. Rad1 {[%clk 0:01:27]}  Qc6 {[%clk 0:02:16]} 24. fxe6 {[%clk 0:01:25]}  Qxe6 {[%clk 0:01:59]} 25. Nd5+ {[%clk 0:01:06]}  Nxd5 {[%clk 0:01:52]} 26. Rf7+ {[%clk 0:01:05]}  Qxf7 {[%clk 0:01:52]} 27. Bxf7 {[%clk 0:01:05]}  Nxe3 {[%clk 0:01:53]} 28. Qxe3 {[%clk 0:01:00]}  Rad8 {[%clk 0:01:26]} 29. Bd5 {[%clk 0:00:58]}  Bxd5 {[%clk 0:01:25]} 30. Rxd5 {[%clk 0:00:58]}  Rxd5 {[%clk 0:01:23]} 31. cxd5 {[%clk 0:00:58]}  Rd8 {[%clk 0:01:23]} 32. Qe4 {[%clk 0:00:57]}  Bf6 {[%clk 0:01:19]} 33. Qh7+ {[%clk 0:00:50]}  Kf8 {[%clk 0:01:15]} 34. Qxh6+ {[%clk 0:00:46]}  Bg7 {[%clk 0:01:15]} 35. Qe6 {[%clk 0:00:44]}  Re8 {[%clk 0:01:06]} 36. Qf5+ {[%clk 0:00:43]}  Kg8 {[%clk 0:01:06]} 37. Qd7 {[%clk 0:00:40]}  Kf8 {[%clk 0:01:04]} 38. Qxc7 {[%clk 0:00:39]}  e4 {[%clk 0:01:04]} 39. Qf4+ {[%clk 0:00:39]}  Kg8 {[%clk 0:01:03]} 40. Kf1 {[%clk 0:00:37]}  Rf8 {[%clk 0:01:03]} 41. Qxf8+ {[%clk 0:00:33]}  Kxf8 {[%clk 0:01:04]} 42. b3 {[%clk 0:00:34]}  Ke7 {[%clk 0:01:04]} 43. Ke2 {[%clk 0:00:34]}  Kd6 {[%clk 0:01:04]} 0-1


[Site "https://www.chess.com"]

[Event "Titled Tuesday Blitz May 03 Late 2022"]
[White "Jones, Gawain C B"]
[Black "Sarana, Alexey"]
[WhiteFideId "409561"]
[BlackFideId "24133795"]
[WhiteElo "2657"]
[BlackElo "2666"]
[Result "1-0"]
[Round "06"]
[TimeControl "180+1"]
[Date "2022.05.03"]
[WhiteClock "0:00:28"]
[BlackClock "0:00:08"]

1. Nf3 {[%clk 0:03:00]}  d5 {[%clk 0:03:00]} 2. g3 {[%clk 0:03:00]}  Nf6 {[%clk 0:03:00]} 3. Bg2 {[%clk 0:03:00]}  g6 {[%clk 0:03:01]} 4. b3 {[%clk 0:03:00]}  Bg7 {[%clk 0:03:02]} 5. Bb2 {[%clk 0:03:00]}  O-O {[%clk 0:03:02]} 6. O-O {[%clk 0:03:01]}  a5 {[%clk 0:03:02]} 7. c4 {[%clk 0:03:01]}  c6 {[%clk 0:03:01]} 8. d3 {[%clk 0:02:58]}  b5 {[%clk 0:02:59]} 9. cxb5 {[%clk 0:02:51]}  cxb5 {[%clk 0:03:00]} 10. Nc3 {[%clk 0:02:52]}  Qb6 {[%clk 0:02:57]} 11. a4 {[%clk 0:02:48]}  b4 {[%clk 0:02:57]} 12. Nb5 {[%clk 0:02:48]}  Bd7 {[%clk 0:02:57]} 13. Nbd4 {[%clk 0:02:29]}  Rc8 {[%clk 0:02:54]} 14. Qd2 {[%clk 0:02:28]}  Na6 {[%clk 0:02:51]} 15. Qe3 {[%clk 0:02:22]}  Re8 {[%clk 0:02:33]} 16. Ne5 {[%clk 0:02:22]}  Rad8 {[%clk 0:02:21]} 17. Rac1 {[%clk 0:02:17]}  Ng4 {[%clk 0:02:20]} 18. Nxd7 {[%clk 0:02:07]}  Rxd7 {[%clk 0:02:00]} 19. Qf4 {[%clk 0:02:07]}  h5 {[%clk 0:01:53]} 20. h3 {[%clk 0:01:49]}  Bh6 {[%clk 0:01:44]} 21. Rc6 {[%clk 0:01:41]}  Qb7 {[%clk 0:01:43]} 22. hxg4 {[%clk 0:01:23]}  Bxf4 {[%clk 0:01:26]} 23. gxf4 {[%clk 0:01:24]}  hxg4 {[%clk 0:01:26]} 24. Rfc1 {[%clk 0:01:22]}  e6 {[%clk 0:01:21]} 25. Nb5 {[%clk 0:01:17]}  Nb8 {[%clk 0:01:10]} 26. R6c5 {[%clk 0:01:07]}  Qb6 {[%clk 0:01:07]} 27. Bf6 {[%clk 0:01:03]}  g3 {[%clk 0:01:02]} 28. e3 {[%clk 0:00:57]}  e5 {[%clk 0:00:59]} 29. fxe5 {[%clk 0:00:55]}  Qe6 {[%clk 0:00:53]} 30. fxg3 {[%clk 0:00:50]}  Qg4 {[%clk 0:00:47]} 31. Kf2 {[%clk 0:00:50]}  d4 {[%clk 0:00:16]} 32. e4 {[%clk 0:00:39]}  Na6 {[%clk 0:00:10]} 33. Rh1 {[%clk 0:00:36]}  Qh5 {[%clk 0:00:10]} 34. Rxh5 {[%clk 0:00:36]}  gxh5 {[%clk 0:00:11]} 35. Rc6 {[%clk 0:00:31]}  Nb8 {[%clk 0:00:08]} 36. Rc1 {[%clk 0:00:30]}  Kh7 {[%clk 0:00:07]} 37. Bh3 {[%clk 0:00:30]}  Rb7 {[%clk 0:00:06]} 38. Bf5+ {[%clk 0:00:30]}  Kh6 {[%clk 0:00:07]} 39. Nd6 {[%clk 0:00:29]}  Rg8 {[%clk 0:00:08]} 40. Nxb7 {[%clk 0:00:28]} 1-0


[Site "https://www.chess.com"]

[Event "Titled Tuesday Blitz May 03 Late 2022"]
[White "Kamsky, Gata"]
[Black "Bortnyk, Olexandr"]
[WhiteFideId "2000024"]
[BlackFideId "14120828"]
[WhiteElo "2645"]
[BlackElo "2723"]
[Result "0-1"]
[Round "06"]
[TimeControl "180+1"]
[Date "2022.05.03"]
[WhiteClock "0:00:02"]
[BlackClock "0:00:04"]

1. d4 {[%clk 0:03:00]}  d6 {[%clk 0:03:00]} 2. e4 {[%clk 0:02:59]}  Nf6 {[%clk 0:03:00]} 3. Nc3 {[%clk 0:02:59]}  Nbd7 {[%clk 0:02:59]} 4. Nf3 {[%clk 0:02:57]}  e5 {[%clk 0:02:59]} 5. Bc4 {[%clk 0:02:56]}  Be7 {[%clk 0:02:59]} 6. O-O {[%clk 0:02:56]}  c6 {[%clk 0:03:00]} 7. a4 {[%clk 0:02:55]}  h6 {[%clk 0:03:01]} 8. a5 {[%clk 0:02:51]}  Qc7 {[%clk 0:03:01]} 9. Re1 {[%clk 0:02:39]}  g5 {[%clk 0:03:01]} 10. Be3 {[%clk 0:02:25]}  Nf8 {[%clk 0:03:00]} 11. dxe5 {[%clk 0:01:42]}  dxe5 {[%clk 0:03:01]} 12. Nxe5 {[%clk 0:01:42]}  Qxe5 {[%clk 0:02:59]} 13. Bd4 {[%clk 0:01:43]}  Qf4 {[%clk 0:02:03]} 14. e5 {[%clk 0:01:39]}  Ng4 {[%clk 0:02:04]} 15. g3 {[%clk 0:01:39]}  Nxf2 {[%clk 0:02:04]} 16. gxf4 {[%clk 0:01:20]}  Nxd1 {[%clk 0:02:04]} 17. e6 {[%clk 0:01:15]}  Bxe6 {[%clk 0:01:14]} 18. Bxe6 {[%clk 0:01:01]}  Rg8 {[%clk 0:01:08]} 19. Bb3 {[%clk 0:00:56]}  gxf4+ {[%clk 0:01:06]} 20. Kf1 {[%clk 0:00:55]}  Nxc3 {[%clk 0:00:57]} 21. bxc3 {[%clk 0:00:53]}  Rg6 {[%clk 0:00:57]} 22. Re4 {[%clk 0:00:48]}  Ne6 {[%clk 0:00:57]} 23. Rae1 {[%clk 0:00:45]}  b6 {[%clk 0:00:22]} 24. axb6 {[%clk 0:00:41]}  axb6 {[%clk 0:00:23]} 25. Bxe6 {[%clk 0:00:41]}  fxe6 {[%clk 0:00:22]} 26. Rxe6 {[%clk 0:00:40]}  Rxe6 {[%clk 0:00:23]} 27. Rxe6 {[%clk 0:00:40]}  c5 {[%clk 0:00:22]} 28. Bf6 {[%clk 0:00:39]}  Kf7 {[%clk 0:00:22]} 29. Rxe7+ {[%clk 0:00:37]}  Kxf6 {[%clk 0:00:23]} 30. Rb7 {[%clk 0:00:34]}  Ra3 {[%clk 0:00:07]} 31. Rxb6+ {[%clk 0:00:33]}  Ke5 {[%clk 0:00:08]} 32. Rxh6 {[%clk 0:00:27]}  Rxc3 {[%clk 0:00:08]} 33. Rh8 {[%clk 0:00:20]}  Rxc2 {[%clk 0:00:07]} 34. h4 {[%clk 0:00:17]}  Ke4 {[%clk 0:00:08]} 35. h5 {[%clk 0:00:14]}  Kf3 {[%clk 0:00:06]} 36. Kg1 {[%clk 0:00:13]}  Rg2+ {[%clk 0:00:07]} 37. Kh1 {[%clk 0:00:13]}  Rg5 {[%clk 0:00:07]} 38. Kh2 {[%clk 0:00:08]}  c4 {[%clk 0:00:07]} 39. Kh3 {[%clk 0:00:02]}  c3 {[%clk 0:00:04]} 40. Kh4 {[%clk 0:00:02]}  Rc5 {[%clk 0:00:04]} 0-1


[Site "https://www.chess.com"]